[Event "Titled Tuesday Blitz June 13 Early 2023"]
[White "Rosenberg, Evan S"]
[Black "Santos Flores, Alberto"]
[WhiteFideId "2019299"]
[BlackFideId "3601234"]
[WhiteElo "2351"]
[BlackElo "2235"]
[Result "0-1"]
[Round "9"]
[TimeControl "180+2"]
[Date "2023.06.13"]
[WhiteClock "0:00:12"]
[BlackClock "0:00:14"]
[Board "125"]

1. d4 {[%clk 0:03:00]}  d5 {[%clk 0:02:59]} 2. Nf3 {[%clk 0:03:00]}  Nf6 {[%clk 0:02:58]} 3. Bg5 {[%clk 0:02:59]}  Ne4 {[%clk 0:02:55]} 4. Bh4 {[%clk 0:02:59]}  c5 {[%clk 0:02:54]} 5. e3 {[%clk 0:02:59]}  Qb6 {[%clk 0:02:54]} 6. Nc3 {[%clk 0:02:59]}  Nxc3 {[%clk 0:02:51]} 7. bxc3 {[%clk 0:02:59]}  e6 {[%clk 0:02:52]} 8. Be2 {[%clk 0:02:57]}  Qa5 {[%clk 0:02:49]} 9. O-O {[%clk 0:02:33]}  Nc6 {[%clk 0:02:48]} 10. c4 {[%clk 0:02:26]}  cxd4 {[%clk 0:02:44]} 11. exd4 {[%clk 0:02:20]}  Bd6 {[%clk 0:02:41]} 12. c5 {[%clk 0:02:16]}  Bc7 {[%clk 0:02:39]} 13. c4 {[%clk 0:02:16]}  dxc4 {[%clk 0:02:35]} 14. Bxc4 {[%clk 0:02:06]}  O-O {[%clk 0:02:34]} 15. Rc1 {[%clk 0:01:56]}  Nb4 {[%clk 0:02:27]} 16. Qd2 {[%clk 0:01:49]}  Nd5 {[%clk 0:02:21]} 17. Qxa5 {[%clk 0:01:46]}  Bxa5 {[%clk 0:02:22]} 18. Ne5 {[%clk 0:01:36]}  f6 {[%clk 0:02:19]} 19. Nd3 {[%clk 0:01:34]}  Bd7 {[%clk 0:02:16]} 20. Bg3 {[%clk 0:01:29]}  Bc6 {[%clk 0:02:13]} 21. Bd6 {[%clk 0:01:29]}  Rfe8 {[%clk 0:02:10]} 22. h4 {[%clk 0:01:20]}  Kf7 {[%clk 0:02:08]} 23. h5 {[%clk 0:01:20]}  Bc7 {[%clk 0:02:00]} 24. Bxd5 {[%clk 0:01:16]}  Bxd5 {[%clk 0:01:27]} 25. Bxc7 {[%clk 0:01:15]}  Bxa2 {[%clk 0:01:28]} 26. Rc2 {[%clk 0:00:59]}  Bd5 {[%clk 0:01:26]} 27. Nb4 {[%clk 0:00:57]}  Be4 {[%clk 0:01:24]} 28. Re2 {[%clk 0:00:57]}  Bf5 {[%clk 0:01:24]} 29. f3 {[%clk 0:00:50]}  a5 {[%clk 0:01:23]} 30. g4 {[%clk 0:00:50]}  axb4 {[%clk 0:00:49]} 31. gxf5 {[%clk 0:00:50]}  exf5 {[%clk 0:00:50]} 32. Rb2 {[%clk 0:00:50]}  Ra4 {[%clk 0:00:46]} 33. Rfb1 {[%clk 0:00:50]}  b3 {[%clk 0:00:31]} 34. d5 {[%clk 0:00:50]}  Rc4 {[%clk 0:00:29]} 35. d6 {[%clk 0:00:45]}  Ke6 {[%clk 0:00:24]} 36. Re2+ {[%clk 0:00:41]}  Kd7 {[%clk 0:00:24]} 37. Rxe8 {[%clk 0:00:40]}  Kxe8 {[%clk 0:00:25]} 38. Re1+ {[%clk 0:00:38]}  Kd7 {[%clk 0:00:25]} 39. Re7+ {[%clk 0:00:37]}  Kc6 {[%clk 0:00:25]} 40. Re3 {[%clk 0:00:15]}  b2 {[%clk 0:00:24]} 41. Rb3 {[%clk 0:00:13]}  Rc1+ {[%clk 0:00:24]} 42. Kf2 {[%clk 0:00:14]}  b1=Q {[%clk 0:00:24]} 43. Rxb1 {[%clk 0:00:14]}  Rxb1 {[%clk 0:00:25]} 44. Ke3 {[%clk 0:00:14]}  Rd1 {[%clk 0:00:20]} 45. Kf4 {[%clk 0:00:14]}  g6 {[%clk 0:00:19]} 46. hxg6 {[%clk 0:00:09]}  hxg6 {[%clk 0:00:20]} 47. Bd8 {[%clk 0:00:10]}  Kxc5 {[%clk 0:00:19]} 48. Bxf6 {[%clk 0:00:09]}  Kxd6 {[%clk 0:00:19]} 49. Kg5 {[%clk 0:00:08]}  Rg1+ {[%clk 0:00:18]} 50. Kh6 {[%clk 0:00:08]}  Ke6 {[%clk 0:00:18]} 51. Bg5 {[%clk 0:00:08]}  Kf7 {[%clk 0:00:18]} 52. f4 {[%clk 0:00:09]}  b5 {[%clk 0:00:18]} 53. Bh4 {[%clk 0:00:08]}  b4 {[%clk 0:00:18]} 54. Bf2 {[%clk 0:00:07]}  Rg2 {[%clk 0:00:17]} 55. Bc5 {[%clk 0:00:07]}  b3 {[%clk 0:00:17]} 56. Ba3 {[%clk 0:00:07]}  Ra2 {[%clk 0:00:16]} 57. Bc1 {[%clk 0:00:06]}  b2 {[%clk 0:00:16]} 58. Bxb2 {[%clk 0:00:05]}  Rxb2 {[%clk 0:00:17]} 59. Kg5 {[%clk 0:00:05]}  Rg2+ {[%clk 0:00:16]} 60. Kh4 {[%clk 0:00:06]}  Rg4+ {[%clk 0:00:16]} 61. Kh3 {[%clk 0:00:06]}  Rxf4 {[%clk 0:00:16]} 62. Kg3 {[%clk 0:00:07]}  Rg4+ {[%clk 0:00:16]} 63. Kf3 {[%clk 0:00:07]}  Kf6 {[%clk 0:00:15]} 64. Kf2 {[%clk 0:00:08]}  Ra4 {[%clk 0:00:13]} 65. Kf3 {[%clk 0:00:09]}  Kg5 {[%clk 0:00:13]} 66. Kg3 {[%clk 0:00:10]}  Ra3+ {[%clk 0:00:13]} 67. Kh2 {[%clk 0:00:10]}  Kg4 {[%clk 0:00:13]} 68. Kg2 {[%clk 0:00:11]}  Ra2+ {[%clk 0:00:14]} 69. Kg1 {[%clk 0:00:11]}  Kf3 {[%clk 0:00:14]} 70. Kh1 {[%clk 0:00:12]}  Kg3 {[%clk 0:00:13]} 71. Kg1 {[%clk 0:00:12]}  Ra1# {[%clk 0:00:14]} 0-1


[Site "https://www.chess.com"]

[Event "Titled Tuesday Blitz June 13 Early 2023"]
[White "Sovetbekova, Nurai"]
[Black "Bilan, Danila"]
[WhiteFideId "13801910"]
[BlackFideId "24161918"]
[WhiteElo "1857"]
[BlackElo "2146"]
[Result "0-1"]
[Round "9"]
[TimeControl "180+2"]
[Date "2023.06.13"]
[WhiteClock "0:00:06"]
[BlackClock "0:00:06"]
[Board "126"]

1. d4 {[%clk 0:03:00]}  d5 {[%clk 0:02:57]} 2. c4 {[%clk 0:03:00]}  c6 {[%clk 0:02:57]} 3. Nf3 {[%clk 0:03:00]}  Nf6 {[%clk 0:02:57]} 4. g3 {[%clk 0:03:01]}  Bf5 {[%clk 0:02:57]} 5. Nc3 {[%clk 0:03:01]}  e6 {[%clk 0:02:57]} 6. Nh4 {[%clk 0:03:00]}  Bg4 {[%clk 0:02:56]} 7. h3 {[%clk 0:02:57]}  Bh5 {[%clk 0:02:56]} 8. g4 {[%clk 0:02:36]}  Bg6 {[%clk 0:02:56]} 9. Qb3 {[%clk 0:02:36]}  Qc8 {[%clk 0:02:41]} 10. Bg2 {[%clk 0:02:22]}  Bd6 {[%clk 0:02:32]} 11. Bg5 {[%clk 0:02:16]}  Nbd7 {[%clk 0:02:19]} 12. Rc1 {[%clk 0:02:12]}  Qb8 {[%clk 0:02:13]} 13. O-O {[%clk 0:01:51]}  O-O {[%clk 0:01:49]} 14. Nxg6 {[%clk 0:01:42]}  hxg6 {[%clk 0:01:48]} 15. e4 {[%clk 0:01:42]}  dxc4 {[%clk 0:01:35]} 16. Qxc4 {[%clk 0:01:39]}  Bf4 {[%clk 0:01:35]} 17. Bxf4 {[%clk 0:01:35]}  Qxf4 {[%clk 0:01:36]} 18. Qb3 {[%clk 0:01:16]}  Rab8 {[%clk 0:01:33]} 19. d5 {[%clk 0:01:06]}  exd5 {[%clk 0:01:02]} 20. exd5 {[%clk 0:01:05]}  Ne5 {[%clk 0:01:02]} 21. Ne2 {[%clk 0:00:52]}  Qd2 {[%clk 0:00:44]} 22. Rc2 {[%clk 0:00:49]}  Qa5 {[%clk 0:00:32]} 23. Qg3 {[%clk 0:00:46]}  Rfe8 {[%clk 0:00:28]} 24. dxc6 {[%clk 0:00:35]}  Nxc6 {[%clk 0:00:20]} 25. Bxc6 {[%clk 0:00:32]}  bxc6 {[%clk 0:00:20]} 26. Nd4 {[%clk 0:00:32]}  Qxa2 {[%clk 0:00:17]} 27. Rxc6 {[%clk 0:00:21]}  Qxb2 {[%clk 0:00:13]} 28. Nf3 {[%clk 0:00:15]}  Rb3 {[%clk 0:00:12]} 29. Qg2 {[%clk 0:00:12]}  Qa3 {[%clk 0:00:08]} 30. Rc7 {[%clk 0:00:11]}  Rxf3 {[%clk 0:00:08]} 31. Rxa7 {[%clk 0:00:09]}  Qxa7 {[%clk 0:00:07]} 32. Qxf3 {[%clk 0:00:09]}  Qe7 {[%clk 0:00:07]} 33. g5 {[%clk 0:00:09]}  Nh5 {[%clk 0:00:07]} 34. h4 {[%clk 0:00:09]}  Qe4 {[%clk 0:00:07]} 35. Qh3 {[%clk 0:00:09]}  Nf4 {[%clk 0:00:06]} 36. Qg4 {[%clk 0:00:06]}  Ne2+ {[%clk 0:00:06]} 0-1


[Site "https://www.chess.com"]

[Event "Titled Tuesday Blitz June 13 Early 2023"]
[White "Kovalevsky, Stanislav"]
[Black "Bashirli, Saadat"]
[WhiteFideId "13508598"]
[BlackFideId "13429990"]
[WhiteElo "2112"]
[BlackElo "1408"]
[Result "0-1"]
[Round "9"]
[TimeControl "180+2"]
[Date "2023.06.13"]
[WhiteClock "0:00:35"]
[BlackClock "0:00:46"]
[Board "128"]

1. c4 {[%clk 0:03:00]}  e6 {[%clk 0:02:56]} 2. e4 {[%clk 0:03:00]}  d5 {[%clk 0:02:51]} 3. exd5 {[%clk 0:03:01]}  exd5 {[%clk 0:02:51]} 4. cxd5 {[%clk 0:03:02]}  Qxd5 {[%clk 0:02:50]} 5. Nc3 {[%clk 0:03:02]}  Qd8 {[%clk 0:02:46]} 6. Bc4 {[%clk 0:03:03]}  Nf6 {[%clk 0:02:46]} 7. Nge2 {[%clk 0:03:02]}  Be7 {[%clk 0:02:45]} 8. O-O {[%clk 0:03:02]}  O-O {[%clk 0:02:45]} 9. d4 {[%clk 0:03:03]}  b6 {[%clk 0:02:38]} 10. Nf4 {[%clk 0:02:53]}  Bb7 {[%clk 0:02:36]} 11. Re1 {[%clk 0:02:52]}  Nbd7 {[%clk 0:02:33]} 12. h3 {[%clk 0:02:43]}  Bd6 {[%clk 0:02:27]} 13. Nb5 {[%clk 0:02:37]}  Bb4 {[%clk 0:02:13]} 14. Bd2 {[%clk 0:02:33]}  Bxd2 {[%clk 0:02:13]} 15. Qxd2 {[%clk 0:02:34]}  a6 {[%clk 0:02:11]} 16. Nc3 {[%clk 0:02:31]}  b5 {[%clk 0:02:07]} 17. Bd3 {[%clk 0:02:26]}  Nb6 {[%clk 0:02:04]} 18. Re5 {[%clk 0:02:18]}  Re8 {[%clk 0:01:55]} 19. Rae1 {[%clk 0:02:16]}  Qd6 {[%clk 0:01:35]} 20. Qe3 {[%clk 0:01:34]}  Nbd7 {[%clk 0:01:17]} 21. Rxe8+ {[%clk 0:00:56]}  Rxe8 {[%clk 0:01:18]} 22. Qxe8+ {[%clk 0:00:49]}  Nxe8 {[%clk 0:01:17]} 23. Rxe8+ {[%clk 0:00:50]}  Nf8 {[%clk 0:01:17]} 24. d5 {[%clk 0:00:48]}  Qxf4 {[%clk 0:01:08]} 25. Ne4 {[%clk 0:00:48]}  Bxd5 {[%clk 0:01:02]} 26. Ng3 {[%clk 0:00:46]}  g6 {[%clk 0:00:57]} 27. Rd8 {[%clk 0:00:39]}  c6 {[%clk 0:00:46]} 28. Ne2 {[%clk 0:00:35]} 0-1


[Site "https://www.chess.com"]

[Event "Titled Tuesday Blitz June 13 Early 2023"]
[White "Buchenau, Frank"]
[Black "Acikel, Mert"]
[WhiteFideId "4604350"]
[BlackFideId "12956465"]
[WhiteElo "2157"]
[BlackElo "2097"]
[Result "0-1"]
[Round "9"]
[TimeControl "180+2"]
[Date "2023.06.13"]
[WhiteClock "0:00:17"]
[BlackClock "0:00:09"]
[Board "134"]

1. e4 {[%clk 0:03:00]}  e5 {[%clk 0:02:59]} 2. Bc4 {[%clk 0:03:00]}  Nf6 {[%clk 0:02:59]} 3. d3 {[%clk 0:03:00]}  c6 {[%clk 0:02:57]} 4. Nf3 {[%clk 0:03:00]}  d5 {[%clk 0:02:55]} 5. Bb3 {[%clk 0:03:00]}  Bb4+ {[%clk 0:02:55]} 6. Bd2 {[%clk 0:02:59]}  Bxd2+ {[%clk 0:02:52]} 7. Nbxd2 {[%clk 0:03:00]}  Nbd7 {[%clk 0:02:51]} 8. O-O {[%clk 0:03:00]}  O-O {[%clk 0:02:51]} 9. Re1 {[%clk 0:02:59]}  Re8 {[%clk 0:02:51]} 10. d4 {[%clk 0:02:57]}  dxe4 {[%clk 0:02:44]} 11. Nxe4 {[%clk 0:02:54]}  exd4 {[%clk 0:02:39]} 12. Nd6 {[%clk 0:02:31]}  Rxe1+ {[%clk 0:02:28]} 13. Qxe1 {[%clk 0:02:31]}  Nd5 {[%clk 0:02:28]} 14. Ng5 {[%clk 0:02:19]}  N7f6 {[%clk 0:02:13]} 15. Ngxf7 {[%clk 0:02:17]}  Qf8 {[%clk 0:02:07]} 16. Qe5 {[%clk 0:02:12]}  Bd7 {[%clk 0:02:00]} 17. Re1 {[%clk 0:02:08]}  h6 {[%clk 0:01:52]} 18. Bxd5 {[%clk 0:02:05]}  cxd5 {[%clk 0:01:47]} 19. Qxd4 {[%clk 0:01:49]}  Be8 {[%clk 0:01:29]} 20. Nxe8 {[%clk 0:01:39]}  Rxe8 {[%clk 0:01:27]} 21. Rxe8 {[%clk 0:01:32]}  Qxe8 {[%clk 0:01:25]} 22. Ne5 {[%clk 0:01:31]}  Qe6 {[%clk 0:01:21]} 23. f4 {[%clk 0:01:18]}  b6 {[%clk 0:01:16]} 24. Qa4 {[%clk 0:01:16]}  Qe7 {[%clk 0:01:05]} 25. Qc6 {[%clk 0:01:13]}  Qb4 {[%clk 0:00:53]} 26. Qc8+ {[%clk 0:00:56]}  Kh7 {[%clk 0:00:51]} 27. Qf5+ {[%clk 0:00:51]}  Kg8 {[%clk 0:00:49]} 28. Nd3 {[%clk 0:00:49]}  Qd4+ {[%clk 0:00:47]} 29. Kf1 {[%clk 0:00:46]}  Ne4 {[%clk 0:00:37]} 30. Qe5 {[%clk 0:00:46]}  Qe3 {[%clk 0:00:37]} 31. Qxd5+ {[%clk 0:00:44]}  Kh8 {[%clk 0:00:34]} 32. g3 {[%clk 0:00:29]}  Qf3+ {[%clk 0:00:33]} 33. Kg1 {[%clk 0:00:26]}  Qd1+ {[%clk 0:00:19]} 34. Kg2 {[%clk 0:00:25]}  Qe2+ {[%clk 0:00:13]} 35. Kh3 {[%clk 0:00:25]}  Qf1+ {[%clk 0:00:09]} 36. Kg4 {[%clk 0:00:17]}  Nf6+ {[%clk 0:00:09]} 0-1


[Site "https://www.chess.com"]

[Event "Titled Tuesday Blitz June 13 Early 2023"]
[White "Putri, Regita Desyari"]
[Black "Chandreyee, Hajra"]
[WhiteFideId "7109083"]
[BlackFideId "5056535"]
[WhiteElo "1930"]
[BlackElo "1725"]
[Result "0-1"]
[Round "9"]
[TimeControl "180+2"]
[Date "2023.06.13"]
[WhiteClock "0:00:06"]
[BlackClock "0:00:26"]
[Board "135"]

1. d4 {[%clk 0:02:55]}  e6 {[%clk 0:02:59]} 2. c4 {[%clk 0:02:55]}  f5 {[%clk 0:02:56]} 3. g3 {[%clk 0:02:54]}  Nf6 {[%clk 0:02:52]} 4. Bg2 {[%clk 0:02:54]}  Be7 {[%clk 0:02:50]} 5. Nf3 {[%clk 0:02:55]}  d6 {[%clk 0:02:51]} 6. O-O {[%clk 0:02:55]}  Ne4 {[%clk 0:02:47]} 7. b3 {[%clk 0:02:44]}  O-O {[%clk 0:02:46]} 8. Bb2 {[%clk 0:02:44]}  Nd7 {[%clk 0:02:43]} 9. Nbd2 {[%clk 0:02:43]}  Ndf6 {[%clk 0:02:43]} 10. Qc2 {[%clk 0:02:32]}  b6 {[%clk 0:02:42]} 11. Nxe4 {[%clk 0:02:25]}  Nxe4 {[%clk 0:02:39]} 12. Nd2 {[%clk 0:02:22]}  Nxd2 {[%clk 0:02:22]} 13. Qxd2 {[%clk 0:02:22]}  Rb8 {[%clk 0:02:22]} 14. e4 {[%clk 0:01:51]}  Bb7 {[%clk 0:02:18]} 15. exf5 {[%clk 0:01:47]}  Bxg2 {[%clk 0:02:17]} 16. Kxg2 {[%clk 0:01:47]}  exf5 {[%clk 0:02:16]} 17. f4 {[%clk 0:01:34]}  d5 {[%clk 0:02:15]} 18. Rfe1 {[%clk 0:01:29]}  Bf6 {[%clk 0:02:13]} 19. Qd3 {[%clk 0:01:26]}  Qd7 {[%clk 0:02:10]} 20. Rac1 {[%clk 0:01:23]}  Rbe8 {[%clk 0:02:08]} 21. Ba3 {[%clk 0:00:46]}  Rxe1 {[%clk 0:01:43]} 22. Rxe1 {[%clk 0:00:46]}  Rd8 {[%clk 0:01:42]} 23. c5 {[%clk 0:00:39]}  Re8 {[%clk 0:01:35]} 24. Rxe8+ {[%clk 0:00:19]}  Qxe8 {[%clk 0:01:35]} 25. Kf3 {[%clk 0:00:17]}  Qh5+ {[%clk 0:01:12]} 26. Kg2 {[%clk 0:00:17]}  Qe8 {[%clk 0:01:09]} 27. cxb6 {[%clk 0:00:15]}  axb6 {[%clk 0:01:07]} 28. Kf3 {[%clk 0:00:15]}  Qe1 {[%clk 0:00:42]} 29. Qxf5 {[%clk 0:00:10]}  Qd1+ {[%clk 0:00:28]} 30. Kg2 {[%clk 0:00:09]}  Qe2+ {[%clk 0:00:27]} 31. Kg1 {[%clk 0:00:07]}  Bxd4+ {[%clk 0:00:26]} 32. Kh1 {[%clk 0:00:06]}  Qf3# {[%clk 0:00:26]} 0-1


[Site "https://www.chess.com"]

[Event "Titled Tuesday Blitz June 13 Early 2023"]
[White "SicilianPanzer"]
[Black "Gomez Barrera, Javiera Belen"]
[BlackFideId "3418723"]
[WhiteElo "2257"]
[BlackElo "2119"]
[Result "0-1"]
[Round "9"]
[TimeControl "180+2"]
[Date "2023.06.13"]
[WhiteClock "0:01:40"]
[BlackClock "0:02:11"]
[Board "136"]

1. d4 {[%clk 0:03:00]}  d5 {[%clk 0:02:59]} 2. c4 {[%clk 0:02:57]}  e6 {[%clk 0:02:59]} 3. Nc3 {[%clk 0:02:57]}  Nf6 {[%clk 0:03:00]} 4. cxd5 {[%clk 0:02:55]}  exd5 {[%clk 0:03:01]} 5. Bg5 {[%clk 0:02:55]}  c6 {[%clk 0:02:58]} 6. e3 {[%clk 0:02:55]}  h6 {[%clk 0:02:58]} 7. Bh4 {[%clk 0:02:54]}  Be7 {[%clk 0:02:59]} 8. Bd3 {[%clk 0:02:53]}  O-O {[%clk 0:02:59]} 9. Nge2 {[%clk 0:02:49]}  Re8 {[%clk 0:02:57]} 10. Qc2 {[%clk 0:02:45]}  a5 {[%clk 0:02:56]} 11. O-O {[%clk 0:02:43]}  b5 {[%clk 0:02:45]} 12. a4 {[%clk 0:02:33]}  b4 {[%clk 0:02:40]} 13. Nb1 {[%clk 0:02:21]}  Bb7 {[%clk 0:02:38]} 14. Nd2 {[%clk 0:02:18]}  Nbd7 {[%clk 0:02:38]} 15. f3 {[%clk 0:02:14]}  c5 {[%clk 0:02:38]} 16. dxc5 {[%clk 0:02:11]}  Bxc5 {[%clk 0:02:37]} 17. Nd4 {[%clk 0:02:00]}  Rxe3 {[%clk 0:02:34]} 18. N2b3 {[%clk 0:01:58]}  Bxd4 {[%clk 0:02:17]} 19. Nxd4 {[%clk 0:01:57]}  Qb6 {[%clk 0:02:18]} 20. Bf2 {[%clk 0:01:56]}  Qxd4 {[%clk 0:02:17]} 21. Rad1 {[%clk 0:01:40]}  Qe5 {[%clk 0:02:11]} 0-1


[Site "https://www.chess.com"]

[Event "Titled Tuesday Blitz June 13 Early 2023"]
[White "Dixit, Nikhil"]
[Black "Necula, Iulian"]
[WhiteFideId "5059534"]
[BlackFideId "1232380"]
[WhiteElo "2207"]
[BlackElo "1790"]
[Result "1-0"]
[Round "9"]
[TimeControl "180+2"]
[Date "2023.06.13"]
[WhiteClock "0:02:20"]
[BlackClock "0:02:10"]
[Board "141"]

1. e4 {[%clk 0:03:00]}  d6 {[%clk 0:03:00]} 2. d4 {[%clk 0:02:59]}  Nf6 {[%clk 0:03:01]} 3. Nc3 {[%clk 0:02:57]}  Nbd7 {[%clk 0:03:02]} 4. Nf3 {[%clk 0:02:55]}  e5 {[%clk 0:03:02]} 5. Bc4 {[%clk 0:02:54]}  Be7 {[%clk 0:03:01]} 6. dxe5 {[%clk 0:02:53]}  dxe5 {[%clk 0:03:01]} 7. O-O {[%clk 0:02:54]}  c6 {[%clk 0:03:01]} 8. a4 {[%clk 0:02:53]}  a5 {[%clk 0:03:00]} 9. h3 {[%clk 0:02:52]}  h6 {[%clk 0:03:00]} 10. Qe2 {[%clk 0:02:50]}  Qc7 {[%clk 0:03:00]} 11. Nh4 {[%clk 0:02:44]}  g6 {[%clk 0:02:31]} 12. f4 {[%clk 0:02:42]}  Nh5 {[%clk 0:02:24]} 13. Bxf7+ {[%clk 0:02:36]}  Kxf7 {[%clk 0:02:23]} 14. fxe5+ {[%clk 0:02:36]}  Kg7 {[%clk 0:02:18]} 15. Nxg6 {[%clk 0:02:21]}  Kxg6 {[%clk 0:02:13]} 16. Qg4+ {[%clk 0:02:19]}  Bg5 {[%clk 0:02:12]} 17. Qf5+ {[%clk 0:02:19]}  Kg7 {[%clk 0:02:10]} 18. Qf7# {[%clk 0:02:20]} 1-0


[Site "https://www.chess.com"]

[Event "Titled Tuesday Blitz June 13 Early 2023"]
[White "Mazurkiewicz, Michal"]
[Black "Sarkar, Justin"]
[WhiteFideId "1124943"]
[BlackFideId "2010011"]
[WhiteElo "2063"]
[BlackElo "2151"]
[Result "1-0"]
[Round "9"]
[TimeControl "180+2"]
[Date "2023.06.13"]
[WhiteClock "0:01:42"]
[BlackClock "0:00:00"]
[Board "142"]

1. e4 {[%clk 0:03:00]}  c5 {[%clk 0:02:22]} 2. Nf3 {[%clk 0:02:58]}  d6 {[%clk 0:02:21]} 3. g3 {[%clk 0:02:58]}  Nf6 {[%clk 0:02:19]} 4. d3 {[%clk 0:02:57]}  Bg4 {[%clk 0:02:12]} 5. Bg2 {[%clk 0:02:57]}  Nc6 {[%clk 0:02:11]} 6. h3 {[%clk 0:02:57]}  Bxf3 {[%clk 0:02:10]} 7. Qxf3 {[%clk 0:02:58]}  g6 {[%clk 0:02:08]} 8. c3 {[%clk 0:02:58]}  Bg7 {[%clk 0:02:07]} 9. Qe2 {[%clk 0:02:58]}  O-O {[%clk 0:02:06]} 10. O-O {[%clk 0:02:58]}  Rb8 {[%clk 0:02:05]} 11. a4 {[%clk 0:02:57]}  a6 {[%clk 0:02:03]} 12. Be3 {[%clk 0:02:50]}  Nd7 {[%clk 0:01:18]} 13. Nd2 {[%clk 0:02:38]}  b5 {[%clk 0:01:15]} 14. axb5 {[%clk 0:02:38]}  axb5 {[%clk 0:01:15]} 15. e5 {[%clk 0:02:37]}  Qc7 {[%clk 0:00:37]} 16. exd6 {[%clk 0:02:35]}  exd6 {[%clk 0:00:36]} 17. Ne4 {[%clk 0:02:29]}  Rfe8 {[%clk 0:00:32]} 18. Qc2 {[%clk 0:02:27]}  b4 {[%clk 0:00:27]} 19. Bf4 {[%clk 0:02:09]}  Be5 {[%clk 0:00:22]} 20. Bxe5 {[%clk 0:02:05]}  Ncxe5 {[%clk 0:00:19]} 21. f4 {[%clk 0:02:02]}  Nc6 {[%clk 0:00:14]} 22. Ra6 {[%clk 0:02:01]}  Rb6 {[%clk 0:00:02]} 23. Rxb6 {[%clk 0:02:01]}  Qxb6 {[%clk 0:00:02]} 24. Nxd6 {[%clk 0:02:00]}  c4+ {[%clk 0:00:01]} 25. d4 {[%clk 0:02:01]}  Nxd4 {[%clk 0:00:01]} 26. cxd4 {[%clk 0:02:00]}  Qxd4+ {[%clk 0:00:01]} 27. Kh2 {[%clk 0:01:57]}  Qxd6 {[%clk 0:00:02]} 28. Qxc4 {[%clk 0:01:55]}  Nb6 {[%clk 0:00:02]} 29. Qb5 {[%clk 0:01:52]}  Rd8 {[%clk 0:00:02]} 30. Re1 {[%clk 0:01:48]}  Kg7 {[%clk 0:00:00]} 31. Re4 {[%clk 0:01:42]} 1-0


[Site "https://www.chess.com"]

[Event "Titled Tuesday Blitz June 13 Early 2023"]
[White "Chuemsakul, Sarocha"]
[Black "Hartikainen, Jarmo"]
[WhiteFideId "6203710"]
[BlackFideId "503134"]
[WhiteElo "1686"]
[BlackElo "2126"]
[Result "1-0"]
[Round "9"]
[TimeControl "180+2"]
[Date "2023.06.13"]
[WhiteClock "0:00:14"]
[BlackClock "0:00:03"]
[Board "146"]

1. d4 {[%clk 0:02:56]}  Nf6 {[%clk 0:02:59]} 2. c4 {[%clk 0:02:55]}  g6 {[%clk 0:02:59]} 3. Nc3 {[%clk 0:02:55]}  d5 {[%clk 0:02:59]} 4. cxd5 {[%clk 0:02:54]}  Nxd5 {[%clk 0:03:00]} 5. e4 {[%clk 0:02:55]}  Nxc3 {[%clk 0:03:00]} 6. bxc3 {[%clk 0:02:56]}  Bg7 {[%clk 0:03:00]} 7. Nf3 {[%clk 0:02:57]}  O-O {[%clk 0:03:01]} 8. Be2 {[%clk 0:02:57]}  c5 {[%clk 0:03:01]} 9. O-O {[%clk 0:02:58]}  b6 {[%clk 0:02:55]} 10. Be3 {[%clk 0:02:57]}  Bb7 {[%clk 0:02:54]} 11. Qc2 {[%clk 0:02:51]}  cxd4 {[%clk 0:02:39]} 12. cxd4 {[%clk 0:02:52]}  Nc6 {[%clk 0:02:36]} 13. Rac1 {[%clk 0:02:48]}  Rc8 {[%clk 0:02:24]} 14. Qa4 {[%clk 0:02:40]}  Na5 {[%clk 0:02:12]} 15. d5 {[%clk 0:02:34]}  Qd6 {[%clk 0:01:52]} 16. Bd2 {[%clk 0:02:20]}  e6 {[%clk 0:01:25]} 17. Bxa5 {[%clk 0:02:03]}  bxa5 {[%clk 0:01:24]} 18. Qxa5 {[%clk 0:01:49]}  exd5 {[%clk 0:01:23]} 19. e5 {[%clk 0:01:50]}  Qb6 {[%clk 0:01:20]} 20. Qxb6 {[%clk 0:01:48]}  axb6 {[%clk 0:01:20]} 21. Rb1 {[%clk 0:01:49]}  Rc2 {[%clk 0:01:09]} 22. Rxb6 {[%clk 0:01:47]}  Rxe2 {[%clk 0:01:09]} 23. Rxb7 {[%clk 0:01:47]}  Rxa2 {[%clk 0:01:08]} 24. Rd1 {[%clk 0:01:46]}  Rfa8 {[%clk 0:01:05]} 25. g3 {[%clk 0:01:30]}  Ra1 {[%clk 0:01:03]} 26. Rxa1 {[%clk 0:01:27]}  Rxa1+ {[%clk 0:01:03]} 27. Kg2 {[%clk 0:01:28]}  Ra5 {[%clk 0:00:44]} 28. Rb8+ {[%clk 0:01:14]}  Bf8 {[%clk 0:00:44]} 29. Rd8 {[%clk 0:01:12]}  h6 {[%clk 0:00:38]} 30. Nd4 {[%clk 0:01:02]}  Ra6 {[%clk 0:00:19]} 31. f4 {[%clk 0:00:51]}  Kg7 {[%clk 0:00:14]} 32. Rxd5 {[%clk 0:00:49]}  Ra2+ {[%clk 0:00:14]} 33. Kh3 {[%clk 0:00:47]}  h5 {[%clk 0:00:13]} 34. Rd7 {[%clk 0:00:47]}  Kg8 {[%clk 0:00:11]} 35. Rd8 {[%clk 0:00:39]}  Kg7 {[%clk 0:00:10]} 36. e6 {[%clk 0:00:36]}  Ra7 {[%clk 0:00:10]} 37. Rd7 {[%clk 0:00:33]}  Ra4 {[%clk 0:00:04]} 38. Rxf7+ {[%clk 0:00:30]}  Kg8 {[%clk 0:00:04]} 39. Rd7 {[%clk 0:00:29]}  Bc5 {[%clk 0:00:03]} 40. Nc6 {[%clk 0:00:22]}  Kf8 {[%clk 0:00:02]} 41. Rd8+ {[%clk 0:00:21]}  Kg7 {[%clk 0:00:01]} 42. e7 {[%clk 0:00:22]}  Bxe7 {[%clk 0:00:02]} 43. Nxe7 {[%clk 0:00:23]}  Kf6 {[%clk 0:00:02]} 44. Nd5+ {[%clk 0:00:17]}  Ke6 {[%clk 0:00:02]} 45. Ne3 {[%clk 0:00:16]}  Ke7 {[%clk 0:00:02]} 46. Rg8 {[%clk 0:00:15]}  Kd7 {[%clk 0:00:01]} 47. Rxg6 {[%clk 0:00:15]}  Ra3 {[%clk 0:00:01]} 48. Nf5 {[%clk 0:00:14]}  Ra2 {[%clk 0:00:01]} 49. Ng7 {[%clk 0:00:12]}  Ke7 {[%clk 0:00:01]} 50. Nxh5 {[%clk 0:00:12]}  Kf7 {[%clk 0:00:02]} 51. Rf6+ {[%clk 0:00:13]}  Ke7 {[%clk 0:00:02]} 52. Rb6 {[%clk 0:00:13]}  Kf7 {[%clk 0:00:02]} 53. g4 {[%clk 0:00:14]}  Kg8 {[%clk 0:00:02]} 54. g5 {[%clk 0:00:14]}  Ra3+ {[%clk 0:00:02]} 55. Kg4 {[%clk 0:00:14]}  Ra2 {[%clk 0:00:02]} 56. g6 {[%clk 0:00:14]}  Rg2+ {[%clk 0:00:03]} 57. Kf5 {[%clk 0:00:14]}  Rxh2 {[%clk 0:00:03]} 58. Rb8# {[%clk 0:00:14]} 1-0


[Site "https://www.chess.com"]